{"text_format":"1","workbook":"xlsx","n_sheets":2,"sheets":["Instrukcje i konfiguracja","Wrz12"],"not_rendered":{"charts":0,"images":0,"macros":1,"external_links":0,"defined_names":13,"comments":0,"pivot_tables":0},"unopened":[],"bounds":{"document_bytes":16777216,"sheet_cells":100000,"rows_first":2000,"rows_last":500,"rows_between":2000,"halvings":0,"cell_chars":16384,"cell_head_chars":4096},"cells_cut":0,"cells_raw":0,"read":"whole","date_system":"1900"}

{"sheet":"Instrukcje i konfiguracja","index":0,"n_rows":23,"n_cols":9,"rows_kept":23,"cut":false,"hidden":false,"merged":[[3,2,3,4],[5,2,5,4],[7,2,7,4],[9,2,9,4],[3,7,3,8],[5,7,5,8],[7,7,7,8],[9,7,9,8],[11,7,11,8],[4,7,4,8],[6,7,6,8],[8,7,8,8],[10,7,10,8]]}
["`"]
[null,"Instrukcje i konfiguracja"]
[]
[null,1,"W tabeli Zajęcia poniżej wpisz nazwy zajęć, które chcesz śledzić w tym harmonogramie.",null,null,null,5,"Wprowadź datę rozpoczęcia dla harmonogramu w komórce A5."]
[]
[null,2,"W tabeli Działania, także poniżej, zmodyfikuj przykładowe działania, aby odpowiadały Twoim potrzebom. ",null,null,null,6,"W wierszu 4 przy użyciu listy rozwijanej dodaj zajęcia do harmonogramu. "]
[]
[null,3,"W komórce I14 ustaw liczbę wierszy, których chcesz użyć na potrzeby działań związanych z codzienną pracą domową.",null,null,null,7,"Poniżej każdego zajęcia dodaj zadania w kolumnie Zadania."]
[]
[null,4,"W arkuszu harmonogramu, takim jak Wrz 12, wykonaj czynności 5 – 9.",null,null,null,8,"Oszacuj całkowitą liczbę godzin potrzebnych na wykonanie każdego zadania w kolumnie godzin określonej za pomocą ikony zegara."]
[]
[null,null,null,null,null,null,9,"Po wykonaniu zadania kliknij dwukrotnie kolumnę „gotowe”, określoną za pomocą znacznika wyboru, obok danego zadania."]
[]
[null,null,"Zajęcia",null,"Działania",null,null,"Liczba wierszy na każdy dzień:",5]
[null,null,"Matematyka",null,"Dyskusja"]
[null,null,"Język angielski",null,"Laboratorium"]
[null,null,"Język francuski",null,"Wykład"]
[null,null,"Fizyka",null,"Test"]
[null,null,"Historia",null,"Czytanie"]
[null,null,null,null,"Rozważania"]
[null,null,null,null,"Praca naukowa"]
[null,null,null,null,"Przeglądanie zadania"]
[null,null,null,null,"Nauka"]

{"sheet":"Wrz12","index":1,"n_rows":103,"n_cols":24,"rows_kept":103,"cut":false,"hidden":false,"merged":[]}
[]
[null,"Praca domowa"]
[]
[null,"Wprowadź datę rozpoczęcia","Suma"," Zajęcia:",null,"Matematyka"," Zajęcia:",null,"Język angielski"," Zajęcia:",null,"Język francuski"," Zajęcia:",null,"Fizyka"," Zajęcia:",null,null," Zajęcia:",null,null," Zajęcia:"]
[null,"2011-09-12",null,null,null,"ZADANIE",null,null,"ZADANIE",null,null,"ZADANIE",null,null,"ZADANIE",null,null,"ZADANIE",null,null,"ZADANIE",null,null,"ZADANIE"]
[]
[null,{"$f":"HarmonogramDzień","v":"2011-09-12"},{"$f":"Godzinydziennie_łącznie","v":6.5},1,1.5,"Czytanie",1,2,"Nauka",null,1,"Czytanie",1,1,"Test"]
[null,{"$f":"HarmonogramDzień","v":""},{"$f":"Godzinydziennie_łącznie","v":""},1,1,"Przeglądanie zadania"]
[null,{"$f":"HarmonogramDzień","v":""},{"$f":"Godzinydziennie_łącznie","v":""}]
[null,{"$f":"HarmonogramDzień","v":""},{"$f":"Godzinydziennie_łącznie","v":""}]
[null,{"$f":"HarmonogramDzień","v":""},{"$f":"Godzinydziennie_łącznie","v":""}]
[null,{"$f":"HarmonogramDzień","v":"2011-09-13"},{"$f":"Godzinydziennie_łącznie","v":0}]
[null,{"$f":"HarmonogramDzień","v":""},{"$f":"Godzinydziennie_łącznie","v":""}]
[null,{"$f":"HarmonogramDzień","v":""},{"$f":"Godzinydziennie_łącznie","v":""}]
[null,{"$f":"HarmonogramDzień","v":""},{"$f":"Godzinydziennie_łącznie","v":""}]
[null,{"$f":"HarmonogramDzień","v":""},{"$f":"Godzinydziennie_łącznie","v":""}]
[null,{"$f":"HarmonogramDzień","v":"2011-09-14"},{"$f":"Godzinydziennie_łącznie","v":0}]
[null,{"$f":"HarmonogramDzień","v":""},{"$f":"Godzinydziennie_łącznie","v":""}]
[null,{"$f":"HarmonogramDzień","v":""},{"$f":"Godzinydziennie_łącznie","v":""}]
[null,{"$f":"HarmonogramDzień","v":""},{"$f":"Godzinydziennie_łącznie","v":""}]
[null,{"$f":"HarmonogramDzień","v":""},{"$f":"Godzinydziennie_łącznie","v":""}]
[null,{"$f":"HarmonogramDzień","v":"2011-09-15"},{"$f":"Godzinydziennie_łącznie","v":0}]
[null,{"$f":"HarmonogramDzień","v":""},{"$f":"Godzinydziennie_łącznie","v":""}]
[null,{"$f":"HarmonogramDzień","v":""},{"$f":"Godzinydziennie_łącznie","v":""}]
[null,{"$f":"HarmonogramDzień","v":""},{"$f":"Godzinydziennie_łącznie","v":""}]
[null,{"$f":"HarmonogramDzień","v":""},{"$f":"Godzinydziennie_łącznie","v":""}]
[null,{"$f":"HarmonogramDzień","v":"2011-09-16"},{"$f":"Godzinydziennie_łącznie","v":0}]
[null,{"$f":"HarmonogramDzień","v":""},{"$f":"Godzinydziennie_łącznie","v":""}]
[null,{"$f":"HarmonogramDzień","v":""},{"$f":"Godzinydziennie_łącznie","v":""}]
[null,{"$f":"HarmonogramDzień","v":""},{"$f":"Godzinydziennie_łącznie","v":""}]
[null,{"$f":"HarmonogramDzień","v":""},{"$f":"Godzinydziennie_łącznie","v":""}]
[null,{"$f":"HarmonogramDzień","v":"2011-09-17"},{"$f":"Godzinydziennie_łącznie","v":0}]
[null,{"$f":"HarmonogramDzień","v":""},{"$f":"Godzinydziennie_łącznie","v":""}]
[null,{"$f":"HarmonogramDzień","v":""},{"$f":"Godzinydziennie_łącznie","v":""}]
[null,{"$f":"HarmonogramDzień","v":""},{"$f":"Godzinydziennie_łącznie","v":""}]
[null,{"$f":"HarmonogramDzień","v":""},{"$f":"Godzinydziennie_łącznie","v":""}]
[null,{"$f":"HarmonogramDzień","v":"2011-09-18"},{"$f":"Godzinydziennie_łącznie","v":0}]
[null,{"$f":"HarmonogramDzień","v":""},{"$f":"Godzinydziennie_łącznie","v":""}]
[null,{"$f":"HarmonogramDzień","v":""},{"$f":"Godzinydziennie_łącznie","v":""}]
[null,{"$f":"HarmonogramDzień","v":""},{"$f":"Godzinydziennie_łącznie","v":""}]
[null,{"$f":"HarmonogramDzień","v":""},{"$f":"Godzinydziennie_łącznie","v":""}]
[null,{"$f":"HarmonogramDzień","v":""},{"$f":"Godzinydziennie_łącznie","v":""}]
[null,{"$f":"HarmonogramDzień","v":""},{"$f":"Godzinydziennie_łącznie","v":""}]
[null,{"$f":"HarmonogramDzień","v":""},{"$f":"Godzinydziennie_łącznie","v":""}]
[null,{"$f":"HarmonogramDzień","v":""},{"$f":"Godzinydziennie_łącznie","v":""}]
[null,{"$f":"HarmonogramDzień","v":""},{"$f":"Godzinydziennie_łącznie","v":""}]
[null,{"$f":"HarmonogramDzień","v":""},{"$f":"Godzinydziennie_łącznie","v":""}]
[null,{"$f":"HarmonogramDzień","v":""},{"$f":"Godzinydziennie_łącznie","v":""}]
[null,{"$f":"HarmonogramDzień","v":""},{"$f":"Godzinydziennie_łącznie","v":""}]
[null,{"$f":"HarmonogramDzień","v":""},{"$f":"Godzinydziennie_łącznie","v":""}]
[null,{"$f":"HarmonogramDzień","v":""},{"$f":"Godzinydziennie_łącznie","v":""}]
[null,{"$f":"HarmonogramDzień","v":""},{"$f":"Godzinydziennie_łącznie","v":""}]
[null,{"$f":"HarmonogramDzień","v":""},{"$f":"Godzinydziennie_łącznie","v":""}]
[null,{"$f":"HarmonogramDzień","v":""},{"$f":"Godzinydziennie_łącznie","v":""}]
[null,{"$f":"HarmonogramDzień","v":""},{"$f":"Godzinydziennie_łącznie","v":""}]
[null,{"$f":"HarmonogramDzień","v":""},{"$f":"Godzinydziennie_łącznie","v":""}]
[null,{"$f":"HarmonogramDzień","v":""},{"$f":"Godzinydziennie_łącznie","v":""}]
[null,{"$f":"HarmonogramDzień","v":""},{"$f":"Godzinydziennie_łącznie","v":""}]
[null,{"$f":"HarmonogramDzień","v":""},{"$f":"Godzinydziennie_łącznie","v":""}]
[null,{"$f":"HarmonogramDzień","v":""},{"$f":"Godzinydziennie_łącznie","v":""}]
[null,{"$f":"HarmonogramDzień","v":""},{"$f":"Godzinydziennie_łącznie","v":""}]
[null,{"$f":"HarmonogramDzień","v":""},{"$f":"Godzinydziennie_łącznie","v":""}]
[null,{"$f":"HarmonogramDzień","v":""},{"$f":"Godzinydziennie_łącznie","v":""}]
[null,{"$f":"HarmonogramDzień","v":""},{"$f":"Godzinydziennie_łącznie","v":""}]
[null,{"$f":"HarmonogramDzień","v":""},{"$f":"Godzinydziennie_łącznie","v":""}]
[null,{"$f":"HarmonogramDzień","v":""},{"$f":"Godzinydziennie_łącznie","v":""}]
[null,{"$f":"HarmonogramDzień","v":""},{"$f":"Godzinydziennie_łącznie","v":""}]
[null,{"$f":"HarmonogramDzień","v":""},{"$f":"Godzinydziennie_łącznie","v":""}]
[null,{"$f":"HarmonogramDzień","v":""},{"$f":"Godzinydziennie_łącznie","v":""}]
[null,{"$f":"HarmonogramDzień","v":""},{"$f":"Godzinydziennie_łącznie","v":""}]
[null,{"$f":"HarmonogramDzień","v":""},{"$f":"Godzinydziennie_łącznie","v":""}]
[null,{"$f":"HarmonogramDzień","v":""},{"$f":"Godzinydziennie_łącznie","v":""}]
[null,{"$f":"HarmonogramDzień","v":""},{"$f":"Godzinydziennie_łącznie","v":""}]
[null,{"$f":"HarmonogramDzień","v":""},{"$f":"Godzinydziennie_łącznie","v":""}]
[null,{"$f":"HarmonogramDzień","v":""},{"$f":"Godzinydziennie_łącznie","v":""}]
[null,{"$f":"HarmonogramDzień","v":""},{"$f":"Godzinydziennie_łącznie","v":""}]
[null,{"$f":"HarmonogramDzień","v":""},{"$f":"Godzinydziennie_łącznie","v":""}]
[null,{"$f":"HarmonogramDzień","v":""},{"$f":"Godzinydziennie_łącznie","v":""}]
[null,{"$f":"HarmonogramDzień","v":""},{"$f":"Godzinydziennie_łącznie","v":""}]
[null,{"$f":"HarmonogramDzień","v":""},{"$f":"Godzinydziennie_łącznie","v":""}]
[null,{"$f":"HarmonogramDzień","v":""},{"$f":"Godzinydziennie_łącznie","v":""}]
[null,{"$f":"HarmonogramDzień","v":""},{"$f":"Godzinydziennie_łącznie","v":""}]
[null,{"$f":"HarmonogramDzień","v":""},{"$f":"Godzinydziennie_łącznie","v":""}]
[null,{"$f":"HarmonogramDzień","v":""},{"$f":"Godzinydziennie_łącznie","v":""}]
[null,{"$f":"HarmonogramDzień","v":""},{"$f":"Godzinydziennie_łącznie","v":""}]
[null,{"$f":"HarmonogramDzień","v":""},{"$f":"Godzinydziennie_łącznie","v":""}]
[null,{"$f":"HarmonogramDzień","v":""},{"$f":"Godzinydziennie_łącznie","v":""}]
[null,{"$f":"HarmonogramDzień","v":""},{"$f":"Godzinydziennie_łącznie","v":""}]
[null,{"$f":"HarmonogramDzień","v":""},{"$f":"Godzinydziennie_łącznie","v":""}]
[null,{"$f":"HarmonogramDzień","v":""},{"$f":"Godzinydziennie_łącznie","v":""}]
[null,{"$f":"HarmonogramDzień","v":""},{"$f":"Godzinydziennie_łącznie","v":""}]
[null,{"$f":"HarmonogramDzień","v":""},{"$f":"Godzinydziennie_łącznie","v":""}]
[null,{"$f":"HarmonogramDzień","v":""},{"$f":"Godzinydziennie_łącznie","v":""}]
[null,{"$f":"HarmonogramDzień","v":""},{"$f":"Godzinydziennie_łącznie","v":""}]
[null,{"$f":"HarmonogramDzień","v":""},{"$f":"Godzinydziennie_łącznie","v":""}]
[null,{"$f":"HarmonogramDzień","v":""},{"$f":"Godzinydziennie_łącznie","v":""}]
[null,{"$f":"HarmonogramDzień","v":""},{"$f":"Godzinydziennie_łącznie","v":""}]
[null,{"$f":"HarmonogramDzień","v":""},{"$f":"Godzinydziennie_łącznie","v":""}]
[null,{"$f":"HarmonogramDzień","v":""},{"$f":"Godzinydziennie_łącznie","v":""}]
[null,{"$f":"HarmonogramDzień","v":""},{"$f":"Godzinydziennie_łącznie","v":""}]
[null,{"$f":"HarmonogramDzień","v":""},{"$f":"Godzinydziennie_łącznie","v":""}]
[null,{"$f":"HarmonogramDzień","v":""},{"$f":"Godzinydziennie_łącznie","v":""}]
[null,{"$f":"HarmonogramDzień","v":""},{"$f":"Godzinydziennie_łącznie","v":""}]